fUST/lending_fUST_20240413
["ID","MTS","AMOUNT","RATE_DAILY","PERIOD"]
[322450255,1713016241888,-225.25170881,0.00034392,4]
[322450256,1713016241898,-236.60053499,0.00034392,4]
[322450257,1713016241907,-502.53582593,0.00034393,7]
[322450258,1713016241916,-500.0,0.00034393,7]
[322450259,1713016241926,-500.0,0.00034393,7]
[322450261,1713016241935,-158.81891326,0.00034393,7]
[322450263,1713016241944,-70.14490081,0.00034393,7]
[322450375,1713016476383,28856.645403,0.00037489,30]
[322450377,1713016551848,506.09815478,0.00028,7]
[322450378,1713016591338,1333.06671999,0.00037368,30]
[322450379,1713016624339,1334.42756394,0.00037368,30]
[322450380,1713016636906,11698.41,0.00037368,30]
[322450421,1713017152274,10000.0,0.00037392,30]
[322450423,1713017163434,10000.0,0.00037392,30]
[322450425,1713017186466,10000.5,0.00037392,30]
[322450492,1713017432607,-155.01860223,0.00025173,2]
[322450493,1713017432617,-181.23235072,0.00025174,2]
[322450494,1713017432627,-162.528393,0.00027397,2]
[322450495,1713017432638,-159.671489,0.00027397,2]
[322450496,1713017432647,-250.0,0.00027578,2]
[322450497,1713017432656,-844.7745796,0.00027736,2]
[322450498,1713017432665,-205.8366919,0.00027922,2]
[322450499,1713017432674,-169.092332,0.00028559,2]
[322450500,1713017432684,-3637.47569067,0.0002877,2]
[322450501,1713017432693,-222.398593,0.00028869,2]
[322450502,1713017432702,-170.67122457,0.000289,4]
[322450503,1713017432711,-300.0,0.00028935,2]
[322450504,1713017432720,-300.0,0.00028935,2]
[322450505,1713017432730,-24900.0,0.00028936,2]
[322450506,1713017432739,-306.0,0.00029,2]
[322450507,1713017432748,-165.5763929,0.00029617,2]
[322450508,1713017432757,-169.092332,0.00029856,2]
[322450509,1713017432767,-4300.0,0.0003,2]
[322450510,1713017432777,-155.64900908,0.00030228,4]
[322450511,1713017432789,-190.9866,0.00030661,2]
[322450512,1713017432800,-623.6404936,0.00030845,4]
[322450513,1713017432810,-500.0,0.00030846,2]
[322450514,1713017432819,-500.0,0.00030846,2]
[322450515,1713017432829,-500.0,0.00030846,2]
[322450516,1713017432838,-500.0,0.00030846,2]
[322450517,1713017432847,-500.0,0.00030846,2]
[322450518,1713017432857,-500.0,0.00030846,2]
[322450519,1713017432867,-397.22823672,0.00030846,2]
[322450520,1713017432876,-500.0,0.00030846,2]
[322450521,1713017432886,-500.0,0.00030846,2]
[322450522,1713017432897,-500.0,0.00030846,2]
[322450523,1713017432906,-41605.12309341,0.00030847,4]
[322450524,1713017438393,-579.80071256,0.00030847,4]
[322450525,1713017438962,-26426.26923119,0.00030847,4]
[322450526,1713017438972,-169.092332,0.00031154,2]
[322450527,1713017438982,-420.0,0.0003122,2]
[322450528,1713017438992,-420.0,0.00031828,2]
[322450529,1713017439001,-4000.0,0.00032,2]
[322450530,1713017439011,-169.092332,0.00032452,2]
[322450532,1713017439021,-177.85371083,0.000327,2]
[322450534,1713017439030,-2000.0,0.000328,2]
[322450535,1713017439039,-2000.0,0.000328,3]
[322450536,1713017439053,-2000.0,0.000328,4]
[322450537,1713017439063,-2000.0,0.000328,5]
[322450538,1713017439073,-2000.0,0.000328,6]
[322450539,1713017439082,-2000.0,0.000328,7]
[322450540,1713017439093,-352.92723412,0.00032873,4]
[322450541,1713017439103,-547.84882457,0.00032873,4]
[322450542,1713017439112,-156.59556563,0.00032873,4]
[322450543,1713017439122,-564.49254882,0.00032873,4]
[322450544,1713017439131,-1684.61617,0.00032873,4]
[322450545,1713017439141,-308.58192174,0.00032873,4]
[322450546,1713017439150,-155.44052638,0.00032873,4]
[322450547,1713017439159,-207.09548064,0.00032873,4]
[322450548,1713017439168,-303.52707264,0.00032873,4]
[322450549,1713017439177,-156.56610872,0.00032873,4]
[322450550,1713017439187,-1046.48194282,0.00032873,4]
[322450551,1713017439196,-524.73312661,0.00032873,4]
[322450552,1713017439205,-254.1247624,0.00032873,2]
[322450553,1713017439214,-1963.97984376,0.00032873,4]
[322450554,1713017439223,-1931.50577547,0.00032873,4]
[322450555,1713017439233,-341.05239012,0.00032873,4]
[322450556,1713017439242,-208.09189558,0.00032873,4]
[322450557,1713017439251,-155.83041047,0.00032873,4]
[322450558,1713017439260,-203.80289357,0.00032873,4]
[322450559,1713017439269,-263.43758151,0.00032873,4]
[322450560,1713017439279,-156.26047832,0.00032873,4]
[322450561,1713017439288,-184.56080839,0.00032873,4]
[322450562,1713017439300,-156.87250458,0.00032873,4]
[322450563,1713017439309,-194.47312478,0.00032873,2]
[322450564,1713017439318,-207.51509728,0.00032873,4]
[322450565,1713017439327,-5786.1213342,0.00032873,4]
[322450566,1713017439336,-155.13688609,0.00032873,4]
[322450567,1713017439345,-155.22275452,0.00032873,4]
[322450568,1713017439355,-155.57429415,0.00032873,4]
[322450569,1713017439364,-281.94351378,0.00032873,4]
[322450570,1713017439375,-768.22573374,0.00032874,4]
[322450571,1713017439384,-500.0,0.00032875,2]
[322450572,1713017439394,-500.0,0.00032875,2]
[322450573,1713017439407,-500.0,0.00032875,2]
[322450574,1713017439417,-500.0,0.00032875,2]
[322450575,1713017439426,-500.0,0.00032875,2]
[322450576,1713017439435,-563.86106874,0.00032875,2]
[322450577,1713017439446,-309.42946319,0.00032875,4]
[322450578,1713017439455,-157798.73417151,0.00032876,5]
[322450579,1713017439464,-503.27185561,0.00032876,7]
[322450580,1713017439473,-500.0,0.00032876,7]
[322450581,1713017439484,-289.05681872,0.00032876,7]
[322450582,1713017439493,-403.97625376,0.00032876,7]
[322450583,1713017439502,-500.0,0.00032876,7]
[322450584,1713017439511,-500.0,0.00032876,7]
[322450585,1713017439521,-260.042809,0.00032876,7]
[322450586,1713017439530,-500.0,0.00032876,7]
[322450588,1713017439539,-337.67560102,0.00032876,7]
[322450590,1713017439551,-500.0,0.00032876,7]
[322450592,1713017439560,-500.0,0.00032876,7]
[322450594,1713017439570,-500.0,0.00032876,7]
[322450596,1713017439579,-500.0,0.00032876,7]
[322450598,1713017439588,-500.0,0.00032876,7]
[322450599,1713017439597,-319.14847772,0.00032876,7]
[322450601,1713017439606,-500.0,0.00032876,7]
[322450603,1713017439615,-500.0,0.00032876,7]
[322450605,1713017439624,-500.0,0.00032876,7]
[322450607,1713017439633,-500.0,0.00032876,7]
[322450609,1713017439642,-500.0,0.00032876,7]
[322450611,1713017439651,-500.0,0.00032876,7]
[322450613,1713017439661,-500.0,0.00032876,7]
[322450615,1713017439671,-500.0,0.00032876,7]
[322450617,1713017439680,-500.0,0.00032876,7]
[322450619,1713017439690,-500.0,0.00032876,7]
[322450621,1713017439699,-500.0,0.00032876,7]
[322450623,1713017439708,-500.0,0.00032876,7]
[322450625,1713017439722,-500.0,0.00032876,7]
[322450627,1713017439731,-501.56750092,0.00032876,7]
[322450629,1713017439740,-500.0,0.00032876,7]
[322450631,1713017439749,-1154.66,0.00032876,2]
[322450634,1713017439758,-500.0,0.00032876,7]
[322450637,1713017439767,-213.59816491,0.00032876,7]
[322450640,1713017439776,-502.80203795,0.00032876,7]
[322450643,1713017439786,-500.0,0.00032876,7]
[322450645,1713017439796,-500.0,0.00032876,7]
[322450647,1713017439806,-661.36,0.00032876,7]
[322450649,1713017439815,-500.0,0.00032876,7]
[322450651,1713017439825,-502.74279403,0.00032876,7]
[322450653,1713017439834,-500.0,0.00032876,7]
[322450655,1713017439843,-500.0,0.00032876,7]
[322450657,1713017439853,-500.0,0.00032876,7]
[322450659,1713017439862,-409.34752428,0.00032876,7]
[322450661,1713017439871,-500.0,0.00032876,7]
[322450663,1713017439880,-501.11973856,0.00032876,7]
[322450666,1713017439889,-549.05,0.00032876,7]
[322450668,1713017439899,-509.80590463,0.00032876,7]
[322450670,1713017439907,-538.01715849,0.00032876,7]
[322450672,1713017439917,-500.0,0.00032876,7]
[322450674,1713017439927,-301.58630501,0.00032876,7]
[322450676,1713017439937,-500.0,0.00032876,7]
[322450678,1713017439946,-500.0,0.00032876,7]
[322450680,1713017439955,-501.98539824,0.00032876,7]
[322450681,1713017439964,-500.0,0.00032876,7]
[322450683,1713017439974,-500.0,0.00032876,7]
[322450685,1713017439983,-500.0,0.00032876,7]
[322450687,1713017439992,-500.4774247,0.00032876,7]
[322450689,1713017440001,-500.0,0.00032876,7]
[322450691,1713017440011,-500.0,0.00032876,7]
[322450693,1713017440020,-500.0,0.00032876,7]
[322450695,1713017440029,-2021.11,0.00032876,7]
[322450697,1713017440038,-500.0,0.00032876,7]
[322450699,1713017440049,-356.34075149,0.00032876,7]
[322450701,1713017440058,-500.0,0.00032876,7]
[322450703,1713017440067,-843.24,0.00032876,7]
[322450705,1713017440076,-518.88335223,0.00032876,7]
[322450707,1713017440086,-500.0,0.00032876,7]
[322450709,1713017440095,-500.0,0.00032876,7]
[322450711,1713017440104,-500.0,0.00032876,7]
[322450713,1713017440113,-500.0,0.00032876,7]
[322450716,1713017440124,-500.0,0.00032876,7]
[322450718,1713017440133,-500.0,0.00032876,7]
[322450720,1713017440142,-500.0,0.00032876,7]
[322450722,1713017440152,-500.0,0.00032876,7]
[322450724,1713017440161,-500.0,0.00032876,7]
[322450726,1713017440170,-504.18454249,0.00032876,7]
[322450728,1713017440179,-515.323256,0.00032876,7]
[322450730,1713017440188,-500.0,0.00032876,7]
[322450732,1713017440198,-500.0,0.00032876,7]
[322450734,1713017440207,-1596.73,0.00032876,7]
[322450736,1713017440217,-500.0,0.00032876,7]
[322450738,1713017440226,-500.0,0.00032876,7]
[322450740,1713017440235,-500.0,0.00032876,7]
[322450742,1713017440244,-500.0,0.00032876,7]
[322450744,1713017440253,-500.0,0.00032876,7]
[322450746,1713017440262,-500.0,0.00032876,7]
[322450748,1713017440272,-500.0,0.00032876,7]
[322450750,1713017440281,-500.0,0.00032876,7]
[322450751,1713017440290,-500.0,0.00032876,7]
[322450753,1713017440300,-500.0,0.00032876,7]
[322450755,1713017440308,-500.0,0.00032876,7]
[322450757,1713017440317,-500.0,0.00032876,7]
[322450759,1713017440326,-1057.74,0.00032876,7]
[322450761,1713017440335,-3316.03,0.00032876,7]
[322450763,1713017440344,-500.0,0.00032876,7]
[322450765,1713017440353,-500.0,0.00032876,7]
[322450767,1713017440362,-500.0,0.00032876,7]
[322450769,1713017440372,-2437.75,0.00032876,7]
[322450771,1713017440381,-500.0,0.00032876,7]
[322450773,1713017440390,-500.0,0.00032876,7]
[322450775,1713017440400,-500.0,0.00032876,7]
[322450777,1713017440412,-500.0,0.00032876,7]
[322450779,1713017440421,-500.0,0.00032876,7]
[322450781,1713017440430,-507.29782112,0.00032876,7]
[322450783,1713017440439,-553.02,0.00032876,7]
[322450785,1713017440449,-500.0,0.00032876,7]
[322450787,1713017440458,-500.0,0.00032876,7]
[322450789,1713017440467,-500.0,0.00032876,7]
[322450791,1713017440476,-500.0,0.00032876,7]
[322450793,1713017440488,-1110.7,0.00032876,7]
[322450795,1713017440498,-500.0,0.00032876,7]
[322450797,1713017440507,-502.49965639,0.00032876,7]
[322450799,1713017440516,-500.0,0.00032876,7]
[322450801,1713017440525,-826.99,0.00032876,7]
[322450803,1713017440535,-500.0,0.00032876,7]
[322450805,1713017440545,-1763.8,0.00032876,7]
[322450807,1713017440554,-938.18,0.00032876,7]
[322450809,1713017440563,-512.89323581,0.00032876,7]
[322450811,1713017440572,-500.0,0.00032876,7]
[322450813,1713017440582,-448.18534095,0.00032876,7]
[322450815,1713017440592,-2856.21,0.00032876,7]
[322450817,1713017440601,-500.0,0.00032876,7]
[322450819,1713017440610,-500.0,0.00032876,7]
[322450821,1713017440619,-500.0,0.00032876,7]
[322450823,1713017440629,-500.0,0.00032876,7]
[322450825,1713017440638,-573.05,0.00032876,7]
[322450827,1713017440647,-4799.79,0.00032876,7]
[322450829,1713017440656,-1091.95,0.00032876,7]
[322450831,1713017440665,-500.0,0.00032876,7]
[322450833,1713017440674,-888.36,0.00032876,7]
[322450835,1713017440683,-569.09,0.00032876,7]
[322450838,1713017440692,-500.0,0.00032876,7]
[322450839,1713017440701,-500.0,0.00032876,7]
[322450841,1713017440710,-500.0,0.00032876,7]
[322450843,1713017440719,-619.20929098,0.00032876,7]
[322450845,1713017440728,-500.0,0.00032876,7]
[322450847,1713017440737,-510.51005403,0.00032876,7]
[322450848,1713017440746,-500.0,0.00032876,7]
[322450849,1713017440756,-394.89314671,0.00032876,7]
[322450850,1713017440765,-500.0,0.00032876,7]
[322450851,1713017440774,-500.0,0.00032876,7]
[322450852,1713017440783,-500.0,0.00032876,7]
[322450853,1713017440792,-1906.11,0.00032876,7]
[322450854,1713017440801,-500.0,0.00032876,7]
[322450855,1713017440810,-500.0,0.00032876,7]
[322450856,1713017440819,-500.0,0.00032876,7]
[322450857,1713017440829,-500.0,0.00032876,7]
[322450858,1713017440838,-500.0,0.00032876,7]
[322450859,1713017440847,-227.86940097,0.00032876,7]
[322450860,1713017440856,-680.44,0.00032876,7]
[322450861,1713017440865,-500.0,0.00032876,7]
[322450862,1713017440875,-500.0,0.00032876,7]
[322450863,1713017440885,-500.0,0.00032876,7]
[322450864,1713017440895,-624.86,0.00032876,7]
[322450865,1713017440904,-2166.57,0.00032876,7]
[322450866,1713017440914,-746.57,0.00032876,7]
[322450867,1713017440923,-845.28,0.00032876,7]
[322450868,1713017440933,-500.0,0.00032876,7]
[322450869,1713017440942,-1895.65,0.00032876,7]
[322450870,1713017440951,-2038.57,0.00032876,7]
[322450871,1713017440960,-837.75,0.00032876,7]
[322450872,1713017440969,-500.0,0.00032876,7]
[322450873,1713017440979,-680.09,0.00032876,7]
[322450875,1713017440988,-500.0,0.00032876,7]
[322450876,1713017440997,-500.0,0.00032876,7]
[322450878,1713017441006,-500.0,0.00032876,7]
[322450879,1713017441015,-1656.21,0.00032876,7]
[322450880,1713017441024,-500.0,0.00032876,7]
[322450882,1713017441034,-500.0,0.00032876,7]
[322450883,1713017441044,-500.0,0.00032876,7]
[322450885,1713017441053,-500.0,0.00032876,7]
[322450886,1713017441063,-501.64592472,0.00032876,7]
[322450888,1713017441072,-8395.95,0.00032876,7]
[322450890,1713017441082,-503.26912575,0.00032876,7]
[322450891,1713017441091,-502.59759276,0.00032876,7]
[322450893,1713017441100,-1046.63,0.00032876,7]
[322450895,1713017441109,-500.0,0.00032876,7]
[322450896,1713017441119,-500.0,0.00032876,7]
[322450897,1713017441128,-153.39951599,0.00032876,7]
[322450898,1713017441137,-500.0,0.00032876,7]
[322450899,1713017441146,-972.57,0.00032876,7]
[322450900,1713017441156,-291.63521212,0.00032876,7]
[322450901,1713017441165,-594.16,0.00032876,7]
[322450902,1713017441174,-502.24177056,0.00032876,7]
[322450903,1713017441184,-500.0,0.00032876,7]
[322450904,1713017441193,-500.0,0.00032876,7]
[322450905,1713017441202,-500.0,0.00032876,7]
[322450906,1713017441212,-500.0,0.00032876,7]
[322450907,1713017441221,-500.0,0.00032876,7]
[322450908,1713017441231,-545.22,0.00032876,7]
[322450909,1713017441240,-500.0,0.00032876,7]
[322450910,1713017441249,-500.0,0.00032876,7]
[322450911,1713017441258,-507.82013399,0.00032876,7]
[322450912,1713017441268,-500.0,0.00032876,7]
[322450913,1713017441277,-771.2,0.00032876,7]
[322450914,1713017441286,-500.0,0.00032876,7]
[322450915,1713017441296,-500.0,0.00032876,7]
[322450916,1713017441306,-262.0817509,0.00032876,7]
[322450917,1713017441315,-500.0,0.00032876,7]
[322450918,1713017441325,-500.0,0.00032876,7]
[322450919,1713017441334,-25573.39,0.00032876,7]
[322450920,1713017441343,-500.0,0.00032876,7]
[322450921,1713017441352,-500.0,0.00032876,7]
[322450922,1713017441361,-500.0,0.00032876,7]
[322450923,1713017441370,-961.86,0.00032876,7]
[322450924,1713017441379,-2055.79,0.00032876,7]
[322450925,1713017441389,-500.0,0.00032876,7]
[322450926,1713017441398,-505.82341334,0.00032876,7]
[322450927,1713017441411,-864.5,0.00032876,7]
[322450928,1713017441420,-500.0,0.00032876,7]
[322450929,1713017441429,-500.0,0.00032876,7]
[322450930,1713017441438,-500.0,0.00032876,7]
[322450931,1713017441447,-500.0,0.00032876,7]
[322450932,1713017441456,-500.0,0.00032876,7]
[322450933,1713017441466,-500.0,0.00032876,7]
[322450934,1713017441475,-1000.0,0.00033,2]
[322450935,1713017441487,-549.05,0.00033149,7]
[322450936,1713017441497,-549.05,0.00033149,7]
[322450937,1713017441507,-500.0,0.0003315,7]
[322450938,1713017441516,-500.0,0.0003315,7]
[322450939,1713017441619,-500.0,0.0003315,7]
[322450940,1713017441629,-500.0,0.0003315,7]
[322450941,1713017441638,-500.0,0.0003315,7]
[322450942,1713017441648,-500.0,0.0003315,7]
[322450943,1713017441657,-500.0,0.0003315,7]
[322450944,1713017441666,-500.0,0.0003315,7]
[322450945,1713017441675,-500.0,0.0003315,7]
[322450946,1713017441684,-500.0,0.0003315,7]
[322450947,1713017441694,-500.0,0.0003315,7]
[322450948,1713017441703,-500.0,0.0003315,7]
[322450949,1713017441712,-500.0,0.0003315,7]
[322450950,1713017441721,-527.01206263,0.0003315,7]
[322450951,1713017441731,-501.59222558,0.0003315,7]
[322450952,1713017441739,-500.0,0.0003315,7]
[322450953,1713017441749,-500.0,0.0003315,7]
[322450954,1713017441758,-500.0,0.0003315,7]
[322450955,1713017441767,-1154.66,0.0003315,2]
[322450956,1713017441777,-500.0,0.0003315,7]
[322450957,1713017441787,-500.0,0.0003315,7]
[322450958,1713017441798,-500.0,0.0003315,7]
[322450959,1713017441807,-661.36,0.0003315,7]
[322450960,1713017441816,-500.0,0.0003315,7]
[322450961,1713017441825,-507.69288927,0.0003315,7]
[322450962,1713017441835,-500.0,0.0003315,7]
[322450963,1713017441844,-503.40471124,0.0003315,7]
[322450964,1713017441853,-500.0,0.0003315,7]
[322450965,1713017441863,-500.0,0.0003315,7]
[322450966,1713017441871,-500.0,0.0003315,7]
[322450967,1713017441882,-500.0,0.0003315,7]
[322450968,1713017441891,-500.0,0.0003315,7]
[322450969,1713017441900,-2021.11,0.0003315,7]
[322450970,1713017441910,-843.24,0.0003315,7]
[322450971,1713017441919,-500.0,0.0003315,7]
[322450972,1713017441928,-500.0,0.0003315,7]
[322450973,1713017441937,-503.57901693,0.0003315,7]
[322450974,1713017441947,-500.0,0.0003315,7]
[322450975,1713017441956,-500.0,0.0003315,7]
[322450976,1713017441966,-500.0,0.0003315,7]
[322450977,1713017441975,-500.0,0.0003315,7]
[322450978,1713017441985,-500.0,0.0003315,7]
[322450979,1713017441994,-500.0,0.0003315,7]
[322450980,1713017442003,-1596.73,0.0003315,7]
[322450981,1713017442013,-502.3961917,0.0003315,7]
[322450982,1713017442022,-500.0,0.0003315,7]
[322450983,1713017442031,-500.0,0.0003315,7]
[322450984,1713017442040,-500.0,0.0003315,7]
[322450985,1713017442050,-500.0,0.0003315,7]
[322450986,1713017442059,-500.0,0.0003315,7]
[322450987,1713017442068,-500.0,0.0003315,7]
[322450988,1713017442078,-500.0,0.0003315,7]
[322450989,1713017442087,-500.0,0.0003315,7]
[322450990,1713017442096,-500.0,0.0003315,7]
[322450991,1713017442106,-1057.74,0.0003315,7]
[322450992,1713017442115,-3316.03,0.0003315,7]
[322450993,1713017442124,-500.0,0.0003315,7]
[322450994,1713017442133,-428.03974001,0.0003315,7]
[322450995,1713017442143,-532.76534943,0.0003315,7]
[322450996,1713017442152,-2437.75,0.0003315,7]
[322450997,1713017442161,-509.57875445,0.0003315,7]
[322450998,1713017442170,-500.0,0.0003315,7]
[322450999,1713017442180,-500.0,0.0003315,7]
[322451000,1713017442189,-500.0,0.0003315,7]
[322451001,1713017442198,-553.02,0.0003315,7]
[322451002,1713017442207,-500.0,0.0003315,7]
[322451003,1713017442216,-500.0,0.0003315,7]
[322451004,1713017442226,-500.0,0.0003315,7]
[322451005,1713017442235,-1110.7,0.0003315,7]
[322451006,1713017442244,-500.0,0.0003315,7]
[322451007,1713017442253,-500.0,0.0003315,7]
[322451008,1713017442262,-826.99,0.0003315,7]
[322451009,1713017442271,-500.0,0.0003315,7]
[322451010,1713017442280,-1763.8,0.0003315,7]
[322451011,1713017442290,-938.18,0.0003315,7]
[322451012,1713017442299,-500.0,0.0003315,7]
[322451013,1713017442308,-2856.21,0.0003315,7]
[322451014,1713017442318,-500.0,0.0003315,7]
[322451015,1713017442327,-500.0,0.0003315,7]
[322451016,1713017442336,-191.06795352,0.0003315,7]
[322451017,1713017442346,-500.0,0.0003315,7]
[322451018,1713017442356,-573.05,0.0003315,7]
[322451019,1713017442365,-4799.79,0.0003315,7]
[322451020,1713017442374,-1091.95,0.0003315,7]
[322451021,1713017442383,-500.0,0.0003315,7]
[322451022,1713017442393,-888.36,0.0003315,7]
[322451023,1713017442402,-569.09,0.0003315,7]
[322451024,1713017442415,-500.0,0.0003315,7]
[322451025,1713017442424,-500.0,0.0003315,7]
[322451026,1713017442433,-500.0,0.0003315,7]
[322451027,1713017442442,-500.0,0.0003315,7]
[322451028,1713017442451,-508.52981161,0.0003315,7]
[322451029,1713017442461,-1906.11,0.0003315,7]
[322451030,1713017442470,-500.0,0.0003315,7]
[322451031,1713017442479,-500.0,0.0003315,7]
[322451032,1713017442490,-680.44,0.0003315,7]
[322451033,1713017442500,-500.0,0.0003315,7]
[322451034,1713017442509,-500.0,0.0003315,7]
[322451035,1713017442518,-315.41942936,0.0003315,7]
[322451036,1713017442527,-624.86,0.0003315,7]
[322451037,1713017442536,-2166.57,0.0003315,7]
[322451038,1713017442545,-746.57,0.0003315,7]
[322451039,1713017442554,-845.28,0.0003315,7]
[322451040,1713017442564,-1895.65,0.0003315,7]
[322451041,1713017442573,-2038.57,0.0003315,7]
[322451042,1713017442582,-837.75,0.0003315,7]
[322451043,1713017442591,-500.0,0.0003315,7]
[322451044,1713017442600,-680.09,0.0003315,7]
[322451045,1713017442609,-500.0,0.0003315,7]
[322451046,1713017442618,-500.0,0.0003315,7]
[322451047,1713017442628,-500.0,0.0003315,7]
[322451048,1713017442637,-1656.21,0.0003315,7]
[322451049,1713017442647,-500.0,0.0003315,7]
[322451050,1713017442656,-500.0,0.0003315,7]
[322451051,1713017442665,-8395.95,0.0003315,7]
[322451052,1713017442675,-1046.63,0.0003315,7]
[322451053,1713017442684,-500.0,0.0003315,7]
[322451054,1713017442693,-502.41790659,0.0003315,7]
[322451055,1713017442702,-500.0,0.0003315,7]
[322451056,1713017442711,-972.57,0.0003315,7]
[322451057,1713017442720,-594.16,0.0003315,7]
[322451058,1713017442729,-500.0,0.0003315,7]
[322451059,1713017442738,-500.0,0.0003315,7]
[322451060,1713017442747,-545.22,0.0003315,7]
[322451061,1713017442756,-500.0,0.0003315,7]
[322451062,1713017442765,-500.0,0.0003315,7]
[322451063,1713017442775,-771.2,0.0003315,7]
[322451064,1713017442784,-500.0,0.0003315,7]
[322451065,1713017442793,-504.87888477,0.0003315,7]
[322451066,1713017442803,-25573.39,0.0003315,7]
[322451067,1713017442812,-500.0,0.0003315,7]
[322451068,1713017442821,-500.0,0.0003315,7]
[322451069,1713017442830,-500.0,0.0003315,7]
[322451070,1713017442839,-961.86,0.0003315,7]
[322451071,1713017442848,-2055.79,0.0003315,7]
[322451072,1713017442858,-500.0,0.0003315,7]
[322451073,1713017442867,-864.5,0.0003315,7]
[322451074,1713017442876,-500.0,0.0003315,7]
[322451075,1713017442885,-500.0,0.0003315,7]
[322451076,1713017442894,-500.0,0.0003315,7]
[322451077,1713017442902,-162.528393,0.00033165,2]
[322451078,1713017442912,-549.05,0.00033423,7]
[322451079,1713017442921,-500.0,0.00033424,7]
[322451080,1713017442930,-500.0,0.00033424,7]
[322451081,1713017442939,-151.96993164,0.00033424,7]
[322451082,1713017442948,-500.0,0.00033424,7]
[322451083,1713017442957,-500.0,0.00033424,7]
[322451084,1713017442967,-500.0,0.00033424,7]
[322451085,1713017442976,-508.79311456,0.00033424,7]
[322451086,1713017442985,-500.0,0.00033424,7]
[322451087,1713017442994,-514.42647175,0.00033424,7]
[322451088,1713017443003,-500.0,0.00033424,7]
[322451089,1713017443013,-500.0,0.00033424,7]
[322451090,1713017443022,-500.0,0.00033424,7]
[322451091,1713017443031,-518.626347,0.00033424,7]
[322451092,1713017443041,-1154.66,0.00033424,2]
[322451093,1713017443051,-500.0,0.00033424,7]
[322451094,1713017443060,-661.36,0.00033424,7]
[322451095,1713017443069,-500.0,0.00033424,7]
[322451096,1713017443078,-502.16071894,0.00033424,7]
[322451097,1713017443088,-500.0,0.00033424,7]
[322451098,1713017443097,-500.0,0.00033424,7]
[322451099,1713017443107,-503.32067083,0.00033424,7]
[322451100,1713017443116,-2021.11,0.00033424,7]
[322451101,1713017443125,-843.24,0.00033424,7]
[322451102,1713017443134,-209.69412608,0.00033424,7]
[322451103,1713017443144,-500.0,0.00033424,7]
[322451105,1713017443153,-511.08378586,0.00033424,7]
[322451106,1713017443162,-500.0,0.00033424,7]
[322451108,1713017443171,-364.05256396,0.00033424,7]
[322451109,1713017443181,-500.0,0.00033424,7]
[322451110,1713017443191,-500.0,0.00033424,7]
[322451111,1713017443200,-1596.73,0.00033424,7]
[322451112,1713017443210,-340.14566036,0.00033424,7]
[322451113,1713017443219,-500.0,0.00033424,7]
[322451114,1713017443228,-500.0,0.00033424,7]
[322451115,1713017443237,-623.16563812,0.00033424,7]
[322451116,1713017443247,-500.0,0.00033424,7]
[322451117,1713017443257,-500.0,0.00033424,7]
[322451118,1713017443266,-500.0,0.00033424,7]
[322451119,1713017443276,-500.0,0.00033424,7]
[322451120,1713017443285,-500.0,0.00033424,7]